[Event "*** Titled Tuesday Blitz"]
[Site "Chess.com"]
[Date "2018.09.04"]
[Round "2"]
[White "Supernotar"]
[Black "Fighterman91"]
[Result "0-1"]
[WhiteElo "2460"]
[BlackElo "2483"]
[TimeControl "180+2"]
[EndTime "13:59:41 PDT"]
[Termination "Fighterman91 won by checkmate"]

1. d4 {[%clk 0:03:01.9]} 1... Nf6 {[%clk 0:03:00.7]} 2. c4 {[%clk 0:02:58.3]}
2... g6 {[%clk 0:03:01.9]} 3. Nc3 {[%clk 0:02:58.7]} 3... d5 {[%clk 0:03:03.1]}
4. cxd5 {[%clk 0:02:58.8]} 4... Nxd5 {[%clk 0:03:04]} 5. e4 {[%clk 0:02:59.9]}
5... Nxc3 {[%clk 0:03:05.6]} 6. bxc3 {[%clk 0:03:01]} 6... Bg7 {[%clk
0:03:07.5]} 7. Nf3 {[%clk 0:03:02.2]} 7... c5 {[%clk 0:03:08.8]} 8. Be3 {[%clk
0:03:03.4]} 8... Qa5 {[%clk 0:02:59.3]} 9. Qd2 {[%clk 0:03:04]} 9... O-O {[%clk
0:02:53.5]} 10. Rc1 {[%clk 0:03:04.3]} 10... Nd7 {[%clk 0:02:43.4]} 11. Be2
{[%clk 0:03:01.9]} 11... Nf6 {[%clk 0:02:38]} 12. e5 {[%clk 0:02:58.8]} 12...
Nd5 {[%clk 0:02:38.3]} 13. O-O {[%clk 0:02:53.3]} 13... cxd4 {[%clk 0:02:32.4]}
14. cxd4 {[%clk 0:02:53.4]} 14... Qxd2 {[%clk 0:02:34.3]} 15. Bxd2 {[%clk
0:02:47.5]} 15... Bd7 {[%clk 0:02:23.4]} 16. Ng5 {[%clk 0:02:45.5]} 16... Rac8
{[%clk 0:02:16]} 17. Ne4 {[%clk 0:02:34.1]} 17... Bc6 {[%clk 0:02:06.7]} 18. f3
{[%clk 0:02:32.5]} 18... Rfd8 {[%clk 0:02:05.9]} 19. Kf2 {[%clk 0:02:30.5]}
19... f6 {[%clk 0:02:04]} 20. exf6 {[%clk 0:02:23.7]} 20... exf6 {[%clk
0:02:05.1]} 21. Nc5 {[%clk 0:02:15.8]} 21... Re8 {[%clk 0:01:54.9]} 22. Rfd1
{[%clk 0:02:06.7]} 22... f5 {[%clk 0:01:40.8]} 23. Nb3 {[%clk 0:01:59.4]} 23...
Kh8 {[%clk 0:01:14]} 24. Bc4 {[%clk 0:01:11.7]} 24... Nb6 {[%clk 0:01:08]} 25.
Bf1 {[%clk 0:01:05.3]} 25... Bd5 {[%clk 0:01:01]} 26. Bf4 {[%clk 0:00:57.2]}
26... Rxc1 {[%clk 0:00:56.3]} 27. Nxc1 {[%clk 0:00:49.2]} 27... Rc8 {[%clk
0:00:56.3]} 28. Be5 {[%clk 0:00:32]} 28... Kg8 {[%clk 0:00:53.4]} 29. Bd3 {[%clk
0:00:24.6]} 29... Nd7 {[%clk 0:00:38.6]} 30. Bxg7 {[%clk 0:00:25.1]} 30... Kxg7
{[%clk 0:00:40.5]} 31. Nb3 {[%clk 0:00:25.4]} 31... Rc3 {[%clk 0:00:37.9]} 32.
Nc1 {[%clk 0:00:20.3]} 32... Kf6 {[%clk 0:00:33.7]} 33. Ke2 {[%clk 0:00:21.5]}
33... Nb6 {[%clk 0:00:27.9]} 34. h4 {[%clk 0:00:17.1]} 34... Na4 {[%clk
0:00:22.6]} 35. Kf2 {[%clk 0:00:17.8]} 35... Nb2 {[%clk 0:00:16.7]} 36. Rd2
{[%clk 0:00:13.8]} 36... Nxd3+ {[%clk 0:00:09.9]} 37. Nxd3 {[%clk 0:00:14.7]}
37... a5 {[%clk 0:00:10.9]} 38. Nc5 {[%clk 0:00:12.9]} 38... Ra3 {[%clk
0:00:10.8]} 39. Ke1 {[%clk 0:00:11.8]} 39... b5 {[%clk 0:00:10.3]} 40. Rb2
{[%clk 0:00:11.2]} 40... b4 {[%clk 0:00:11.4]} 41. Nb3 {[%clk 0:00:11.5]} 41...
Ke6 {[%clk 0:00:11.6]} 42. Nc1 {[%clk 0:00:12]} 42... Bc4 {[%clk 0:00:12]} 43.
Kd2 {[%clk 0:00:13]} 43... Kd5 {[%clk 0:00:13.3]} 44. Rc2 {[%clk 0:00:13.2]}
44... f4 {[%clk 0:00:13.2]} 45. Rb2 {[%clk 0:00:14.3]} 45... Rc3 {[%clk
0:00:14.1]} 46. Rc2 {[%clk 0:00:15]} 46... Rxc2+ {[%clk 0:00:14.9]} 47. Kxc2
{[%clk 0:00:16.5]} 47... Kxd4 {[%clk 0:00:16.4]} 48. Kd2 {[%clk 0:00:18]} 48...
a4 {[%clk 0:00:17.3]} 49. Kc2 {[%clk 0:00:16.7]} 49... Ke3 {[%clk 0:00:18.2]}
50. Kb2 {[%clk 0:00:16.1]} 50... Kd2 {[%clk 0:00:18.7]} 51. Kb1 {[%clk
0:00:16.2]} 51... a3 {[%clk 0:00:15.6]} 52. h5 {[%clk 0:00:16]} 52... gxh5
{[%clk 0:00:16.4]} 53. Nb3+ {[%clk 0:00:15.9]} 53... Bxb3 {[%clk 0:00:17]} 54.
axb3 {[%clk 0:00:17.5]} 54... Kc3 {[%clk 0:00:17.5]} 55. Ka2 {[%clk 0:00:18.9]}
55... h4 {[%clk 0:00:18.5]} 56. g4 {[%clk 0:00:18.9]} 56... hxg3 {[%clk
0:00:17.7]} 57. Ka1 {[%clk 0:00:19.8]} 57... g2 {[%clk 0:00:19.1]} 58. Ka2
{[%clk 0:00:21.2]} 58... h5 {[%clk 0:00:20.6]} 59. Ka1 {[%clk 0:00:22.4]} 59...
h4 {[%clk 0:00:22.5]} 60. Ka2 {[%clk 0:00:23.8]} 60... h3 {[%clk 0:00:24.4]} 61.
Ka1 {[%clk 0:00:25.4]} 61... h2 {[%clk 0:00:26.3]} 62. Ka2 {[%clk 0:00:26.9]}
62... Kc2 {[%clk 0:00:27.7]} 63. Ka1 {[%clk 0:00:28.3]} 63... Kxb3 {[%clk
0:00:29.2]} 64. Kb1 {[%clk 0:00:29.5]} 64... Kc3 {[%clk 0:00:30.1]} 65. Ka2
{[%clk 0:00:30.7]} 65... Kc4 {[%clk 0:00:31.5]} 66. Kb1 {[%clk 0:00:31.9]} 66...
b3 {[%clk 0:00:33]} 67. Kc1 {[%clk 0:00:33.5]} 67... Kd3 {[%clk 0:00:34.5]} 68.
Kd1 {[%clk 0:00:35]} 68... b2 {[%clk 0:00:34.7]} 69. Ke1 {[%clk 0:00:36.4]}
69... Ke3 {[%clk 0:00:33.7]} 70. Kd1 {[%clk 0:00:37.5]} 70... Kxf3 {[%clk
0:00:35.1]} 71. Kc2 {[%clk 0:00:39.1]} 71... g1=Q {[%clk 0:00:35.1]} 72. Kb3
{[%clk 0:00:40.5]} 72... Qc5 {[%clk 0:00:34.5]} 73. Ka2 {[%clk 0:00:41.5]} 73...
h1=Q {[%clk 0:00:34]} 74. Kb3 {[%clk 0:00:42.8]} 74... Qb1 {[%clk 0:00:33.2]}
75. Ka4 {[%clk 0:00:43.8]} 75... a2 {[%clk 0:00:33.6]} 76. Kb3 {[%clk
0:00:45.3]} 76... Qcc2+ {[%clk 0:00:31.5]} 77. Kb4 {[%clk 0:00:46]} 77... Ke3
{[%clk 0:00:32.1]} 78. Kb5 {[%clk 0:00:47.5]} 78... f3 {[%clk 0:00:33.6]} 79.
Kb6 {[%clk 0:00:49]} 79... f2 {[%clk 0:00:34.8]} 80. Kb7 {[%clk 0:00:50.7]}
80... f1=Q {[%clk 0:00:35.9]} 81. Kb8 {[%clk 0:00:52.2]} 81... Qf7 {[%clk
0:00:35.9]} 82. Ka8 {[%clk 0:00:52.7]} 82... Qch7 {[%clk 0:00:36.7]} 83. Kb8
{[%clk 0:00:53.8]} 83... Qbg6 {[%clk 0:00:37.6]} 84. Ka8 {[%clk 0:00:55.1]}
84... Qgg7 {[%clk 0:00:38.6]} 85. Kb8 {[%clk 0:00:56.4]} 85... a1=Q {[%clk
0:00:38.4]} 86. Kc8 {[%clk 0:00:57.8]} 86... b1=Q {[%clk 0:00:39.4]} 87. Kd8
{[%clk 0:00:59.3]} 87... Qbd3+ {[%clk 0:00:29.5]} 88. Kc8 {[%clk 0:00:53.1]}
88... Qdd7+ {[%clk 0:00:30.1]} 89. Kb8 {[%clk 0:00:53.8]} 89... Qde7 {[%clk
0:00:29.7]} 90. Kc8 {[%clk 0:00:54.6]} 90... Qad4 {[%clk 0:00:24.2]} 91. Kb8
{[%clk 0:00:55.8]} 91... Qdd7 {[%clk 0:00:24.3]} 92. Ka8 {[%clk 0:00:56.9]}
92... Kd4 {[%clk 0:00:23.1]} 93. Kb8 {[%clk 0:00:58.3]} 93... Kc5 {[%clk
0:00:23]} 94. Ka8 {[%clk 0:01:00.2]} 94... Kb6 {[%clk 0:00:23.5]} 95. Kb8 {[%clk
0:01:00.6]} 95... Kc6 {[%clk 0:00:19.2]} 96. Ka8 {[%clk 0:01:01.6]} 96... Kc7
{[%clk 0:00:20.3]} 97. Ka7 {[%clk 0:01:01.7]} 97... Qa1# {[%clk 0:00:14.9]} 0-1

[Event "*** Titled Tuesday Blitz"]
[Site "Chess.com"]
[Date "2018.09.04"]
[Round "2"]
[White "Slovak_fighter2000"]
[Black "Mbneu"]
[Result "1/2-1/2"]
[WhiteElo "2407"]
[BlackElo "2263"]
[TimeControl "180+2"]
[EndTime "14:01:31 PDT"]
[Termination "Game drawn - insufficient material"]

1. d4 {[%clk 0:03:01.9]} 1... Nf6 {[%clk 0:02:59.6]} 2. Bf4 {[%clk 0:03:01.3]}
2... d6 {[%clk 0:02:58.9]} 3. Nf3 {[%clk 0:03:02.5]} 3... a6 {[%clk 0:02:57]} 4.
e3 {[%clk 0:03:03.4]} 4... b6 {[%clk 0:02:56.9]} 5. h3 {[%clk 0:03:03.7]} 5...
Bb7 {[%clk 0:02:57.8]} 6. Nbd2 {[%clk 0:03:04.5]} 6... Nbd7 {[%clk 0:02:58.4]}
7. Be2 {[%clk 0:03:04.6]} 7... g6 {[%clk 0:02:56.7]} 8. O-O {[%clk 0:03:05.4]}
8... Bg7 {[%clk 0:02:57.7]} 9. a4 {[%clk 0:03:05.6]} 9... O-O {[%clk 0:02:57.4]}
10. c3 {[%clk 0:03:06.5]} 10... c5 {[%clk 0:02:54.6]} 11. Qb3 {[%clk 0:03:06.4]}
11... Qc7 {[%clk 0:02:43.5]} 12. Bh2 {[%clk 0:03:02.6]} 12... h6 {[%clk
0:02:26.7]} 13. Rfc1 {[%clk 0:03:02.7]} 13... Ne4 {[%clk 0:02:17.8]} 14. Nxe4
{[%clk 0:03:03.3]} 14... Bxe4 {[%clk 0:02:17.8]} 15. Nd2 {[%clk 0:03:04.3]}
15... Bc6 {[%clk 0:02:08.5]} 16. Bf3 {[%clk 0:03:04.7]} 16... Bxf3 {[%clk
0:02:07.8]} 17. Nxf3 {[%clk 0:03:06.6]} 17... Rfb8 {[%clk 0:02:02.4]} 18. Qa3
{[%clk 0:03:06.7]} 18... b5 {[%clk 0:02:01.5]} 19. axb5 {[%clk 0:03:07.3]} 19...
Rxb5 {[%clk 0:01:57.3]} 20. b4 {[%clk 0:03:07.5]} 20... cxb4 {[%clk 0:01:56.8]}
21. cxb4 {[%clk 0:03:07.1]} 21... Qb7 {[%clk 0:01:57.4]} 22. Rcb1 {[%clk
0:02:51.1]} 22... Nb6 {[%clk 0:01:56.6]} 23. Nd2 {[%clk 0:02:46.7]} 23... Qd5
{[%clk 0:01:54.5]} 24. Qb3 {[%clk 0:02:41.8]} 24... e5 {[%clk 0:01:47.4]} 25.
dxe5 {[%clk 0:02:35.1]} 25... dxe5 {[%clk 0:01:47.2]} 26. Qxd5 {[%clk
0:02:26.1]} 26... Nxd5 {[%clk 0:01:47.5]} 27. Nc4 {[%clk 0:02:27.2]} 27... f6
{[%clk 0:01:37]} 28. Rd1 {[%clk 0:01:40.4]} 28... Ra7 {[%clk 0:01:19.8]} 29. Na5
{[%clk 0:01:32.5]} 29... Nxb4 {[%clk 0:01:17.7]} 30. Rd8+ {[%clk 0:01:30.2]}
30... Kf7 {[%clk 0:01:18.2]} 31. Nc4 {[%clk 0:01:29.3]} 31... Ke7 {[%clk
0:01:16.3]} 32. Rg8 {[%clk 0:01:24.7]} 32... Ke6 {[%clk 0:01:14.3]} 33. Rd8
{[%clk 0:01:21.2]} 33... Rd7 {[%clk 0:01:13.6]} 34. Ra8 {[%clk 0:01:11.2]} 34...
Rc7 {[%clk 0:01:06.7]} 35. Nd2 {[%clk 0:01:06.2]} 35... Rc2 {[%clk 0:01:04.7]}
36. Nb3 {[%clk 0:00:59.6]} 36... Nc6 {[%clk 0:01:00.3]} 37. Nc1 {[%clk
0:00:30.6]} 37... a5 {[%clk 0:00:58]} 38. Bg3 {[%clk 0:00:29.2]} 38... Rcb2
{[%clk 0:00:55.6]} 39. Ra6 {[%clk 0:00:25.8]} 39... Rb6 {[%clk 0:00:55.4]} 40.
Rxb6 {[%clk 0:00:22.4]} 40... Rxb6 {[%clk 0:00:55.4]} 41. Nd3 {[%clk 0:00:24.2]}
41... Rb5 {[%clk 0:00:47.8]} 42. Kf1 {[%clk 0:00:24.2]} 42... Bf8 {[%clk
0:00:48.3]} 43. f3 {[%clk 0:00:22.9]} 43... Nb4 {[%clk 0:00:48.5]} 44. Nc1
{[%clk 0:00:16.6]} 44... Nc2 {[%clk 0:00:46.4]} 45. Ra2 {[%clk 0:00:14.9]} 45...
Na3 {[%clk 0:00:46.9]} 46. Ke2 {[%clk 0:00:12.1]} 46... Nc4 {[%clk 0:00:43.7]}
47. Be1 {[%clk 0:00:11.3]} 47... Rb2+ {[%clk 0:00:42.9]} 48. Rxb2 {[%clk
0:00:12.2]} 48... Nxb2 {[%clk 0:00:44.5]} 49. Bxa5 {[%clk 0:00:13.4]} 49... Nc4
{[%clk 0:00:42.6]} 50. Bd2 {[%clk 0:00:12.5]} 50... Bc5 {[%clk 0:00:42.5]} 51.
e4 {[%clk 0:00:12.6]} 51... Bg1 {[%clk 0:00:42.6]} 52. Nd3 {[%clk 0:00:13.3]}
52... h5 {[%clk 0:00:38.3]} 53. Bc3 {[%clk 0:00:11.2]} 53... f5 {[%clk
0:00:38.1]} 54. Nc5+ {[%clk 0:00:08.3]} 54... Kd6 {[%clk 0:00:37.5]} 55. Nd3
{[%clk 0:00:09]} 55... Ke6 {[%clk 0:00:38.5]} 56. Bb4 {[%clk 0:00:09.5]} 56...
fxe4 {[%clk 0:00:37.2]} 57. fxe4 {[%clk 0:00:10.3]} 57... Bd4 {[%clk 0:00:37.5]}
58. Kf3 {[%clk 0:00:08.5]} 58... Nb6 {[%clk 0:00:35.1]} 59. Bd2 {[%clk
0:00:04.9]} 59... Nc4 {[%clk 0:00:35]} 60. Bc1 {[%clk 0:00:06.3]} 60... Nd6
{[%clk 0:00:35.5]} 61. Bd2 {[%clk 0:00:06.6]} 61... Nf7 {[%clk 0:00:36.1]} 62.
Bc1 {[%clk 0:00:06.9]} 62... Kf6 {[%clk 0:00:37]} 63. g4 {[%clk 0:00:07.8]}
63... Ng5+ {[%clk 0:00:37.3]} 64. Bxg5+ {[%clk 0:00:06.9]} 64... Kxg5 {[%clk
0:00:38.2]} 65. Ne1 {[%clk 0:00:05.9]} 65... Kh4 {[%clk 0:00:37.1]} 66. gxh5
{[%clk 0:00:07.8]} 66... gxh5 {[%clk 0:00:37.7]} 67. Kg2 {[%clk 0:00:09.2]}
67... Kg5 {[%clk 0:00:37.1]} 68. Nd3 {[%clk 0:00:10.5]} 68... Kh4 {[%clk
0:00:35.8]} 69. Nb4 {[%clk 0:00:09.3]} 69... Bb2 {[%clk 0:00:32.9]} 70. Nd3
{[%clk 0:00:07.7]} 70... Bd4 {[%clk 0:00:33.2]} 71. Ne1 {[%clk 0:00:08]} 71...
Kg5 {[%clk 0:00:33.7]} 72. Nd3 {[%clk 0:00:08.8]} 72... Kg6 {[%clk 0:00:34.3]}
73. Kf3 {[%clk 0:00:09.8]} 73... Kg5 {[%clk 0:00:35.4]} 74. Nb4 {[%clk
0:00:07.5]} 74... Kh4 {[%clk 0:00:34.6]} 75. Kg2 {[%clk 0:00:08.7]} 75... Kg5
{[%clk 0:00:35.4]} 76. Nd5 {[%clk 0:00:08.8]} 76... Kh4 {[%clk 0:00:34.8]} 77.
Kh2 {[%clk 0:00:09.3]} 77... Kg5 {[%clk 0:00:35]} 78. Kg3 {[%clk 0:00:10.6]}
78... h4+ {[%clk 0:00:35.1]} 79. Kf3 {[%clk 0:00:11.9]} 79... Kh5 {[%clk
0:00:35.7]} 80. Nb4 {[%clk 0:00:11.9]} 80... Kg5 {[%clk 0:00:36.7]} 81. Nc6
{[%clk 0:00:12.5]} 81... Bb2 {[%clk 0:00:37.3]} 82. Nb4 {[%clk 0:00:13]} 82...
Bd4 {[%clk 0:00:37.2]} 83. Nd5 {[%clk 0:00:14]} 83... Bb2 {[%clk 0:00:37.8]} 84.
Nc7 {[%clk 0:00:13.9]} 84... Bd4 {[%clk 0:00:38.2]} 85. Ne6+ {[%clk 0:00:14.6]}
85... Kf6 {[%clk 0:00:39]} 86. Nc7 {[%clk 0:00:13.9]} 86... Kg5 {[%clk
0:00:39.7]} 87. Nb5 {[%clk 0:00:14]} 87... Bb2 {[%clk 0:00:40.3]} 88. Na7 {[%clk
0:00:14.5]} 88... Ba1 {[%clk 0:00:41.2]} 89. Nc6 {[%clk 0:00:15.8]} 89... Bb2
{[%clk 0:00:42.3]} 90. Nb4 {[%clk 0:00:16.3]} 90... Ba1 {[%clk 0:00:43.4]} 91.
Nd3 {[%clk 0:00:17.4]} 91... Bd4 {[%clk 0:00:44.2]} 92. Ke2 {[%clk 0:00:18.6]}
92... Kf6 {[%clk 0:00:40.3]} 93. Kd2 {[%clk 0:00:19.8]} 93... Ke6 {[%clk
0:00:41.4]} 94. Kc2 {[%clk 0:00:21.1]} 94... Kd6 {[%clk 0:00:42.8]} 95. Kb3
{[%clk 0:00:22.3]} 95... Kc6 {[%clk 0:00:42.8]} 96. Kc4 {[%clk 0:00:23.5]} 96...
Ba1 {[%clk 0:00:43.7]} 97. Ne1 {[%clk 0:00:23.8]} 97... Bd4 {[%clk 0:00:41.6]}
98. Nf3 {[%clk 0:00:24.1]} 98... Bf2 {[%clk 0:00:41.2]} 99. Nxe5+ {[%clk
0:00:23]} 99... Kd6 {[%clk 0:00:42.3]} 100. Nf3 {[%clk 0:00:23.5]} 100... Ke6
{[%clk 0:00:42.9]} 101. Kd3 {[%clk 0:00:22.8]} 101... Bg3 {[%clk 0:00:43.3]}
102. Ke3 {[%clk 0:00:23.2]} 102... Bb8 {[%clk 0:00:43]} 103. Nd4+ {[%clk
0:00:24.2]} 103... Kf6 {[%clk 0:00:43.9]} 104. Nf5 {[%clk 0:00:21.3]} 104... Kg5
{[%clk 0:00:42.6]} 105. Kf3 {[%clk 0:00:22.7]} 105... Be5 {[%clk 0:00:42.7]}
106. Ne3 {[%clk 0:00:23.1]} 106... Bb8 {[%clk 0:00:41.5]} 107. Ng2 {[%clk
0:00:24.1]} 107... Be5 {[%clk 0:00:41.1]} 108. Ke3 {[%clk 0:00:25.3]} 108... Bb8
{[%clk 0:00:40.6]} 109. Kd4 {[%clk 0:00:25.9]} 109... Bg3 {[%clk 0:00:38.5]}
110. Kd5 {[%clk 0:00:26.2]} 110... Kf6 {[%clk 0:00:39.3]} 111. Ne3 {[%clk
0:00:26]} 111... Kg5 {[%clk 0:00:36.5]} 112. Nf5 {[%clk 0:00:24.9]} 112... Kf4
{[%clk 0:00:37.2]} 113. Ng7 {[%clk 0:00:09.3]} 113... Kf3 {[%clk 0:00:37.8]}
114. e5 {[%clk 0:00:07]} 114... Bxe5 {[%clk 0:00:38.1]} 115. Kxe5 {[%clk
0:00:07.2]} 115... Kg3 {[%clk 0:00:39.5]} 116. Nf5+ {[%clk 0:00:08.6]} 116...
Kxh3 {[%clk 0:00:40.2]} 117. Nxh4 {[%clk 0:00:10.5]} 1/2-1/2